bitfinex-derivatives/quotes_SOLF0:USTF0_20250808
["timestamp","ask_amount","ask_price","bid_price","bid_amount"]
[1754630843979,5.7287,174.53,174.51,3.13]
[1754630844175,10.82928079,174.53,174.51,3.13]
[1754630845583,10.82928079,174.53,174.52,3.13]
[1754630848080,2.08058079,174.56,174.53,3.13]
[1754630848274,11.4487,174.67,174.56,3.13]
[1754630848275,2.08058079,174.59,174.56,3.13]
[1754630848476,2.08058079,174.61,174.57,5.21058079]
[1754630848780,5.7265,174.6,174.58,3.13]
[1754630849484,0.99719182,174.64,174.58,7.80738079]
[1754630849684,3.02,174.62,174.59,5.21058079]
[1754630849881,3.02,174.62,174.59,2.08058079]
[1754630850182,3.02,174.62,174.6,3.13]
[1754630850385,5.7261,174.61,174.6,3.13]
[1754630850987,8.7461,174.61,174.6,3.13]
[1754630852084,5.7261,174.61,174.6,3.13]
[1754630853793,5.7256,174.62,174.6,3.13]
[1754630854191,3.2,174.7,174.61,3.22]
[1754630854389,3.2,174.7,174.67,3.22]
[1754630854690,3.2,174.74,174.68,3.22]
[1754630854887,3.24781922,174.72,174.7,3.22]
[1754630855094,104.9,174.77,174.58,104.9]
[1754630855095,6.44781922,174.74,174.69,3.22]
[1754630855492,5.7226,174.72,174.69,3.22]
[1754630855693,8.9226,174.72,174.69,3.22]
[1754630855994,3.2,174.72,174.69,3.22]
[1754630856191,3.2,174.73,174.69,3.22]
[1754630856495,5.7226,174.72,174.69,3.22]
[1754630856694,8.9226,174.72,174.69,3.22]
[1754630857193,5.7227,174.71,174.69,3.22]
[1754630858295,5.723,174.7,174.69,3.22]
[1754630861497,5.724,174.67,174.64,3.24781922]
[1754630861798,3.2,174.71,174.63,3.24781922]
[1754630861995,3.24781922,174.7,174.63,3.24781922]
[1754630862197,3.2,174.69,174.64,3.22]
[1754630862598,5.7245,174.66,174.64,3.22]
[1754630863700,5.7246,174.65,174.64,3.22]
[1754630865396,6.44781922,174.7,174.64,3.22]
[1754630865598,3.2,174.7,174.65,3.22]
[1754630865995,5.7237,174.68,174.65,3.22]
[1754630866500,5.7241,174.67,174.65,3.22]
[1754630867503,8.9241,174.67,174.65,3.22]
[1754630868105,3.2,174.67,174.65,3.22]
[1754630869595,5.7238,174.68,174.65,3.22]
[1754630869904,5.7238,174.68,174.66,3.22]
[1754630870403,8.9238,174.68,174.67,3.22]
[1754630873602,6.44781922,174.7,174.67,3.22]
[1754630874003,12.17101922,174.7,174.67,3.22]
[1754630874503,12.17101922,174.7,174.67,8.9438]
[1754630874704,12.17101922,174.7,174.68,3.22]
[1754630874705,5.7232,174.7,174.68,3.22]
[1754630875205,0.99633532,174.77,174.67,3.24781922]
[1754630875404,6.44781922,174.76,174.68,3.22]
[1754630875703,6.44781922,174.76,174.7,3.22]
[1754630875906,3.2,174.75,174.71,5.7224]
[1754630876104,3.2,174.75,174.72,3.22]
[1754630876511,3.24781922,174.78,174.73,3.22]
[1754630876803,3.2,174.77,174.73,3.22]
[1754630877205,5.7212,174.76,174.75,3.22]
[1754630877405,8.9212,174.76,174.71,3.24781922]
[1754630877607,3.2,174.75,174.72,3.22]
[1754630878307,8.9214,174.75,174.72,8.9422]
[1754630878508,8.9214,174.75,174.73,3.22]
[1754630879003,5.7214,174.75,174.73,3.22]
[1754630879606,8.9214,174.75,174.73,3.22]
[1754630879811,5.7214,174.75,174.73,3.22]
[1754630880413,8.9214,174.75,174.73,3.22]
[1754630884108,3.02,174.84,174.74,3.28]
[1754630884308,3.02,174.84,174.79,3.28]
[1754630884509,5.7188,174.83,174.79,8.9999]
[1754630884713,3.02,174.84,174.79,3.28]
[1754630885013,3.24781922,174.87,174.79,3.28]
[1754630885207,3.02,174.83,174.79,3.28]
[1754630885407,8.7388,174.83,174.79,5.7199]
[1754630885607,8.7388,174.83,174.78,3.24781922]
[1754630885608,8.7388,174.83,174.8,3.28]
[1754630885803,3.02,174.84,174.8,3.28]
[1754630886016,3.02,174.86,174.82,3.28]
[1754630886214,3.02,174.85,174.82,3.28]
[1754630886415,5.7186,174.84,174.8,8.96741922]
[1754630886713,3.02,174.83,174.82,3.28]
[1754630887116,8.7386,174.84,174.83,3.28]
[1754630889814,8.7386,174.84,174.79,5.72]
[1754630890018,3.02,174.84,174.8,3.28]
[1754630890819,5.7189,174.83,174.8,3.28]
[1754630891022,3.02,174.83,174.8,3.28]
[1754630891409,8.739,174.83,174.8,3.28]
[1754630891614,3.02,174.82,174.81,3.28]
[1754630891925,8.7391,174.82,174.81,3.28]
[1754630892117,3.02,174.82,174.81,3.28]
[1754630892625,8.7391,174.82,174.81,3.28]
[1754630893124,3.02,174.82,174.81,3.28]
[1754630893825,8.7391,174.82,174.81,3.28]
[1754630894021,5.7191,174.82,174.81,3.28]
[1754630895822,8.7391,174.82,174.81,3.28]
[1754630896728,5.7191,174.82,174.81,3.28]
[1754630897023,8.7391,174.82,174.81,3.28]
[1754630897627,5.7191,174.82,174.78,9.0002]
[1754630897925,8.7391,174.82,174.8,3.28]
[1754630900623,5.7191,174.82,174.8,3.28]
[1754630901925,5.7191,174.82,174.8,8.9997]
[1754630902228,5.7191,174.82,174.81,3.28]
[1754630907926,8.7391,174.82,174.81,3.28]
[1754630914334,3.02,174.82,174.81,3.28]
[1754630914734,109.80365505,174.82,174.81,3.21]
[1754630915836,113.4491,174.82,174.81,3.21]
[1754630916038,115.52275505,174.82,174.81,3.21]
[1754630916735,3.19,174.81,174.78,3.21]
[1754630917035,3.19,174.78,174.74,3.21]
[1754630917233,2.07365505,174.77,174.74,3.21]
[1754630917735,2.07365505,174.77,174.74,8.9316]
[1754630917933,104.54,174.78,174.75,5.28365505]
[1754630918137,2.07365505,174.79,174.75,5.28365505]
[1754630918327,2.07365505,174.79,174.77,5.7207]
[1754630918530,2.07365505,174.79,174.78,3.21]
[1754630918727,113.45,174.8,174.78,3.21]
[1754630919031,113.45,174.8,174.77,3.21]
[1754630919032,8.9103,174.79,174.77,3.21]
[1754630919336,5.7204,174.78,174.77,3.21]
[1754630919537,8.9104,174.78,174.77,3.21]
[1754630920036,8.9098,174.8,174.77,3.21]
[1754630920236,104.56,174.79,174.77,3.21]
[1754630920738,104.56,174.79,174.78,3.21]
[1754630921336,110.2801,174.79,174.78,3.21]
[1754630921540,113.4701,174.79,174.78,3.21]
[1754630921842,107.80129898,174.79,174.74,5.7215]
[1754630922039,3.24129898,174.77,174.75,3.21]
[1754630922233,3.19,174.76,174.75,3.21]
[1754630922440,113.4711,174.76,174.75,3.21]
[1754630923442,113.4711,174.76,174.72,5.7221]
[1754630923443,5.7215,174.75,174.73,3.21]
[1754630923644,12.15279898,174.75,174.74,3.21]
[1754630924946,12.15279898,174.75,174.72,5.7221]
[1754630924947,8.96279898,174.75,174.73,3.21]
[1754630925148,8.9117,174.74,174.73,3.21]
[1754630925447,5.7217,174.74,174.73,3.21]
[1754630925643,12.15279898,174.75,174.73,3.21]
[1754630926149,8.9117,174.74,174.73,3.21]
[1754630926445,3.19,174.73,174.72,3.21]
[1754630926645,110.99129898,174.73,174.72,3.21]
[1754630927245,113.52339898,174.73,174.72,3.21]
[1754630927445,116.71339898,174.73,174.72,3.21]
[1754630927745,110.99129898,174.73,174.72,3.21]
[1754630931150,116.71339898,174.73,174.72,3.21]
[1754630933650,110.99129898,174.73,174.72,3.21]
[1754630934253,116.71339898,174.73,174.72,3.21]
[1754630935248,110.99129898,174.73,174.72,3.21]
[1754630936255,116.71339898,174.73,174.72,3.21]
[1754630936654,116.71339898,174.73,174.7,3.21]
[1754630937249,104.56,174.73,174.7,3.21]
[1754630937456,107.80129898,174.73,174.7,3.21]
[1754630937652,104.58,174.72,174.7,3.21]
[1754630937853,104.58,174.72,174.71,5.7227]
[1754630938053,104.58,174.72,174.71,8.9327]
[1754630938249,104.58,174.72,174.71,3.21]
[1754630938857,3.24129898,174.73,174.71,3.21]
[1754630939156,104.58,174.72,174.71,3.21]
[1754630940745,106.65625814,174.72,174.71,3.21]
[1754630941951,109.78625814,174.72,174.71,3.21]
[1754630942458,106.65625814,174.72,174.71,3.21]
[1754630942757,2.07625814,174.72,174.71,3.21]
[1754630942957,106.65625814,174.72,174.71,3.21]
[1754630943658,109.78625814,174.72,174.71,3.21]
[1754630943952,115.50865814,174.72,174.71,3.21]
[1754630944159,3.13,174.71,174.66,3.18]
[1754630944455,2.07625814,174.67,174.66,3.18]
[1754630944657,2.07625814,174.67,174.66,8.9044]
[1754630946760,104.58,174.68,174.67,5.724]
[1754630946955,104.58,174.68,174.67,8.904]
[1754630948955,3.13,174.73,174.64,3.24540272]
[1754630949158,6.37540272,174.73,174.65,3.18]
[1754630949359,104.58,174.72,174.65,3.18]
[1754630949558,110.95540272,174.73,174.65,3.18]
[1754630949858,110.95540272,174.73,174.66,3.24540272]
[1754630950060,110.95540272,174.73,174.67,3.18]
[1754630950661,110.95540272,174.73,174.71,5.7226]
[1754630950859,110.95540272,174.73,174.72,3.18]
[1754630953065,116.67750272,174.73,174.72,3.18]
[1754630956261,6.37540272,174.75,174.72,3.18]
[1754630956461,104.58,174.74,174.72,3.18]
[1754630957262,113.4317,174.74,174.72,3.18]
[1754630957463,3.24540272,174.75,174.72,3.18]
[1754630957764,104.58,174.74,174.72,3.18]
[1754630958463,8.8524,174.73,174.69,5.7232]
[1754630958664,8.8524,174.73,174.67,3.24540272]
[1754630958967,8.8524,174.73,174.69,5.7231]
[1754630959263,8.8524,174.73,174.7,3.18]
[1754630959662,8.8524,174.73,174.7,8.903]
[1754630959864,8.8524,174.73,174.71,3.18]
[1754630961667,5.7224,174.72,174.71,3.18]
[1754630962667,8.8524,174.72,174.71,3.18]
[1754630963371,5.7228,174.71,174.7,3.18]
[1754630963570,8.8528,174.71,174.7,3.18]
[1754630968473,5.7228,174.71,174.7,3.18]
[1754630968771,5.7225,174.72,174.7,3.18]
[1754630970172,8.8525,174.72,174.7,3.18]
[1754630970362,5.7225,174.72,174.71,3.18]
[1754630970565,8.8525,174.72,174.71,3.18]
[1754630970768,10.92870139,174.72,174.71,3.18]
[1754630972775,8.8525,174.72,174.71,3.18]
[1754630973074,10.92870139,174.72,174.71,3.18]
[1754630976178,115.46870139,174.72,174.71,3.18]
[1754630977981,113.3925,174.72,174.71,3.18]
[1754630978185,115.46870139,174.72,174.71,3.18]
[1754630980879,113.3925,174.72,174.71,3.18]
[1754630981082,115.46870139,174.72,174.71,3.18]
[1754630981581,10.92870139,174.72,174.71,3.18]
[1754630981783,115.46870139,174.72,174.71,3.18]
[1754630983485,109.74620139,174.72,174.69,3.26]
[1754630983685,5.27620139,174.71,174.69,3.26]
[1754630983887,3.2,174.7,174.68,5.7237]
[1754630984285,8.9231,174.7,174.67,7.80010139]
[1754630984487,8.9231,174.7,174.68,3.26]
[1754630986488,8.9231,174.7,174.68,8.9837]
[1754630986685,5.7231,174.7,174.69,3.26]
[1754630987389,115.53910139,174.71,174.69,3.26]
[1754630988092,115.53910139,174.71,174.69,8.9834]
[1754630988389,115.53910139,174.71,174.7,3.26]
[1754630988992,10.99910139,174.71,174.7,3.26]
[1754630989292,115.53910139,174.71,174.7,3.26]
[1754630989590,10.99910139,174.71,174.7,3.26]
[1754630989893,115.53910139,174.71,174.7,3.26]
[1754630992394,112.33910139,174.71,174.7,3.26]
[1754630992597,7.79910139,174.71,174.7,3.26]
[1754630992796,112.31910139,174.71,174.7,3.26]
[1754630993094,115.51910139,174.71,174.7,3.26]
[1754630994396,113.4429,174.71,174.7,3.26]
[1754630994591,115.51910139,174.71,174.7,3.26]
[1754630994786,113.4429,174.71,174.7,3.26]
[1754630995497,115.51910139,174.71,174.7,3.26]
[1754630997598,10.99910139,174.71,174.7,3.26]
[1754630997798,115.51910139,174.71,174.7,3.26]
[1754630998402,10.99910139,174.71,174.7,3.26]
[1754630998601,115.51910139,174.71,174.7,3.26]
[1754631000499,115.51910139,174.71,174.65,3.26]
[1754631000500,3.2,174.7,174.65,3.26]
[1754631000700,5.27620139,174.66,174.62,2.07620139]
[1754631000906,11.00070139,174.66,174.62,2.07620139]
[1754631001207,11.00070139,174.66,174.63,3.26]
[1754631001406,11.00070139,174.66,174.63,5.7251]
[1754631001606,11.00070139,174.66,174.64,3.26]
[1754631002202,2.07620139,174.66,174.65,3.25]
[1754631004112,115.40040139,174.67,174.65,3.25]
[1754631005211,5.7244,174.66,174.65,3.25]
[1754631005603,7.80060139,174.66,174.65,3.25]
[1754631005812,10.88060139,174.66,174.65,3.25]
[1754631006411,5.15620139,174.66,174.65,3.25]
[1754631006813,2.07620139,174.66,174.65,3.25]
[1754631007013,112.32040139,174.67,174.65,5.7246]
[1754631007211,112.32040139,174.67,174.66,3.25]
[1754631007614,3.08,174.7,174.66,3.25]
[1754631007912,107.6,174.72,174.7,3.25]
[1754631008614,113.3226,174.72,174.7,3.25]
[1754631010816,3.08,174.71,174.7,3.25]
[1754631011815,8.8027,174.71,174.7,3.25]
[1754631012617,3.08,174.71,174.7,3.25]
[1754631013518,8.8027,174.71,174.7,3.25]
[1754631013813,104.52,174.72,174.7,5.7228]
[1754631014018,104.52,174.72,174.71,3.25]
[1754631014819,10.87840139,174.73,174.71,3.25]
[1754631015015,104.5,174.72,174.71,3.25]
[1754631015313,7.79840139,174.73,174.71,3.25]
[1754631015519,8.8024,174.72,174.71,3.25]
[1754631018820,3.08,174.72,174.71,3.25]
[1754631019820,107.56,174.72,174.71,8.9727]
[1754631020321,107.56,174.72,174.71,3.25]
[1754631020722,113.2824,174.72,174.71,3.25]
[1754631021325,107.56,174.72,174.71,3.25]
[1754631022429,113.2824,174.72,174.71,3.25]
[1754631022724,107.56,174.72,174.71,3.25]
[1754631023222,3.08,174.72,174.71,3.25]
[1754631023425,107.56,174.72,174.71,3.25]
[1754631024628,113.2824,174.72,174.71,3.25]
[1754631024930,107.56,174.72,174.71,3.25]
[1754631026221,3.08,174.7,174.61,11.4515]
[1754631026426,3.08,174.7,174.67,2.07620139]
[1754631026621,3.08,174.7,174.68,3.25]
[1754631026824,8.8033,174.7,174.69,3.25]
[1754631027421,8.8028,174.71,174.69,3.25]
[1754631027826,8.8028,174.71,174.69,8.9734]
[1754631028027,8.8028,174.71,174.7,3.25]
[1754631031728,3.17,174.7,174.65,3.34]
[1754631031932,3.17,174.68,174.66,3.34]
[1754631032733,3.17,174.68,174.66,9.0643]
[1754631032928,2.07620139,174.68,174.64,2.07620139]
[1754631033229,5.24620139,174.67,174.66,3.34]
[1754631033433,10.97020139,174.67,174.66,3.34]
[1754631033629,2.07620139,174.67,174.66,3.34]
[1754631034034,5.24620139,174.68,174.66,3.34]
[1754631034228,2.07620139,174.69,174.65,2.07620139]
[1754631034435,11.4427,174.76,174.67,5.41620139]
[1754631034436,104.46,174.7,174.67,5.41620139]
[1754631034628,110.1831,174.7,174.68,3.34]
[1754631035127,113.3527,174.72,174.69,9.0632]
[1754631035428,3.17,174.72,174.7,3.34]
[1754631035832,5.7224,174.72,174.69,5.7234]
[1754631036033,3.17,174.71,174.69,5.7234]
[1754631036433,3.17,174.71,174.7,3.34]
[1754631037137,8.8924,174.72,174.7,3.34]
[1754631038138,3.17,174.72,174.71,3.34]
[1754631038338,5.24620139,174.72,174.71,3.34]
[1754631038839,10.96860139,174.72,174.71,3.34]
[1754631040339,115.42860139,174.72,174.71,3.34]
[1754631042139,10.96860139,174.72,174.71,3.34]
[1754631042339,115.40860139,174.72,174.71,3.34]
[1754631048146,10.96860139,174.72,174.71,3.34]
[1754631048348,115.40860139,174.72,174.71,3.34]
[1754631051957,106.51620139,174.72,174.66,5.7242]
[1754631052149,5.24620139,174.7,174.67,3.34]
[1754631052352,104.42,174.69,174.67,3.34]
[1754631052550,104.42,174.69,174.68,3.34]
[1754631054253,104.42,174.69,174.68,9.0637]
[1754631055056,104.42,174.69,174.68,3.34]
[1754631057158,110.1434,174.69,174.68,3.34]
[1754631057458,113.3134,174.69,174.68,3.34]
[1754631057659,115.38960139,174.69,174.68,3.34]
[1754631057860,113.3134,174.69,174.68,3.34]
[1754631058060,115.38960139,174.69,174.68,3.34]
[1754631060159,104.42,174.69,174.68,9.0637]
[1754631060657,104.42,174.69,174.68,3.34]
[1754631061663,104.42,174.69,174.68,9.0637]
[1754631062765,2.07620139,174.7,174.68,9.0637]
[1754631062966,2.07620139,174.7,174.69,3.25]
[1754631063166,106.49620139,174.7,174.69,3.25]
[1754631063466,10.98850139,174.73,174.7,3.25]
[1754631063655,107.61,174.72,174.7,3.25]
[1754631063860,113.3326,174.72,174.7,3.25]
[1754631064268,8.9126,174.72,174.7,3.25]
[1754631064471,113.3326,174.72,174.7,3.25]
[1754631064765,113.3126,174.72,174.7,3.25]
[1754631064968,3.19,174.71,174.7,3.25]
[1754631065163,10.98890139,174.71,174.7,3.25]
[1754631066269,8.9127,174.71,174.7,3.25]
[1754631066465,10.98890139,174.71,174.7,3.25]
[1754631067069,115.38890139,174.71,174.7,3.25]
[1754631068368,109.66620139,174.71,174.7,3.25]
[1754631070065,7.79870139,174.72,174.7,8.973]
[1754631070264,104.4,174.71,174.7,8.973]
[1754631070465,104.4,174.71,174.7,3.25]
[1754631071373,104.4,174.71,174.7,8.973]
[1754631072870,8.9125,174.72,174.71,3.25]
[1754631073171,115.38870139,174.72,174.71,3.25]
[1754631073372,113.3125,174.72,174.71,3.25]
[1754631073573,115.38870139,174.72,174.71,3.25]
[1754631075171,104.4,174.72,174.71,8.9727]
[1754631075368,2.07620139,174.73,174.71,8.9727]
[1754631075571,104.38,174.72,174.71,8.9727]
[1754631075970,107.57,174.72,174.71,8.9727]
[1754631076268,3.19,174.74,174.72,5.7224]
[1754631076475,3.19,174.74,174.69,2.07620139]
[1754631076476,106.45620139,174.73,174.69,2.07620139]
[1754631076973,115.36830139,174.73,174.71,5.7224]
[1754631077163,10.98830139,174.73,174.72,3.25]
[1754631077367,109.64620139,174.73,174.72,3.25]
[1754631078276,107.57,174.73,174.72,3.25]
[1754631078575,109.64620139,174.73,174.72,3.25]
[1754631079175,115.36830139,174.73,174.72,3.25]
[1754631082975,112.17830139,174.73,174.72,3.25]
[1754631083174,106.45620139,174.73,174.72,8.9724]
[1754631083374,104.38,174.74,174.71,3.25]
[1754631083674,2.07620139,174.74,174.71,5.32620139]
[1754631083875,106.43620139,174.75,174.72,3.25]
[1754631084277,2.07620139,174.74,174.72,3.25]
[1754631084480,5.26620139,174.73,174.63,11.4502]
[1754631084774,2.07620139,174.71,174.63,11.4502]
[1754631084984,5.26620139,174.71,174.69,5.7232]
[1754631085278,5.26620139,174.71,174.7,3.25]
[1754631085479,10.98890139,174.71,174.7,3.25]
[1754631085676,8.9127,174.71,174.7,3.25]
[1754631085880,3.19,174.71,174.7,3.25]
[1754631086075,2.07620139,174.71,174.7,3.25]
[1754631087181,7.79890139,174.71,174.7,3.25]
[1754631087481,2.07620139,174.71,174.7,3.25]
[1754631087781,8.9125,174.72,174.7,3.25]
[1754631087977,5.7225,174.72,174.71,3.25]
[1754631088178,7.79870139,174.72,174.71,3.25]
[1754631088879,2.07620139,174.72,174.71,3.25]
[1754631089982,7.79860139,174.72,174.71,3.25]
[1754631090181,10.98860139,174.72,174.71,3.25]
[1754631091780,2.07620139,174.72,174.68,3.33]
[1754631091978,3.2,174.68,174.66,3.33]
[1754631092179,5.27620139,174.67,174.66,3.33]
[1754631092375,2.07620139,174.67,174.6,154.19123382]
[1754631092581,3.2,174.65,174.63,3.33]
[1754631092879,5.27620139,174.64,174.63,3.33]
[1754631094389,2.07620139,174.64,174.63,9.0554]
[1754631094784,110.78675305,174.66,174.64,3.33]
[1754631095180,3.2,174.65,174.64,3.33]
[1754631095679,113.31115305,174.66,174.64,3.33]
[1754631095985,107.54,174.66,174.65,3.33]
[1754631096184,107.58675305,174.66,174.65,3.33]
[1754631096479,3.2,174.65,174.64,3.33]
[1754631097186,8.9247,174.65,174.64,3.33]
[1754631097481,3.2,174.64,174.61,3.33]
[1754631097686,3.24675305,174.62,174.6,3.33]
[1754631097885,3.2,174.61,174.6,3.33]
[1754631099187,3.2,174.61,174.6,9.0563]
[1754631099689,3.2,174.61,174.59,3.33]
[1754631099890,6.44675305,174.6,174.59,3.33]
[1754631100491,6.44675305,174.6,174.59,9.0567]
[1754631100792,3.24675305,174.6,174.59,9.0567]
[1754631100985,3.24675305,174.61,174.6,3.33]
[1754631101591,6.44675305,174.61,174.59,5.7267]
[1754631101886,104.36,174.62,174.6,5.7262]
[1754631102191,107.60675305,174.62,174.56,3.33]
[1754631102691,107.60675305,174.62,174.61,5.726]
[1754631102887,107.60675305,174.62,174.61,9.056]
[1754631103695,3.24675305,174.64,174.63,3.33]
[1754631104393,3.2,174.65,174.63,3.33]
[1754631104892,8.9248,174.65,174.63,3.33]
[1754631105194,8.9248,174.65,174.64,3.33]
[1754631105393,5.725,174.64,174.61,5.7259]
[1754631105593,3.2,174.63,174.62,3.33]
[1754631105789,3.24675305,174.64,174.62,3.33]
[1754631105990,3.2,174.63,174.62,3.33]
[1754631106294,3.24675305,174.64,174.62,3.33]
[1754631106494,6.44675305,174.64,174.62,3.33]
[1754631107489,3.24675305,174.64,174.62,5.7256]
[1754631107797,3.24675305,174.64,174.63,3.33]
[1754631109699,6.44675305,174.64,174.63,3.33]
[1754631110996,12.17175305,174.64,174.63,3.33]
[1754631111189,6.44675305,174.64,174.63,3.33]
[1754631111493,3.24675305,174.64,174.63,3.33]
[1754631112696,6.44675305,174.64,174.63,3.33]
[1754631112996,3.24675305,174.64,174.63,3.33]
[1754631113594,8.97175305,174.64,174.63,3.33]
[1754631113901,12.17175305,174.64,174.63,3.33]
[1754631116003,8.96675305,174.64,174.55,3.33]
[1754631116197,3.2,174.56,174.53,3.33]
[1754631116397,3.24675305,174.54,174.53,3.33]
[1754631116597,6.44675305,174.54,174.53,3.33]
[1754631118502,3.24675305,174.54,174.53,3.33]
[1754631119205,12.17535305,174.54,174.49,3.33]
[1754631119704,12.17535305,174.54,174.51,5.7293]
[1754631119905,12.17535305,174.54,174.52,3.33]
[1754631120601,6.44675305,174.54,174.52,3.33]
[1754631120902,104.36,174.59,174.53,3.33]
[1754631121108,3.24675305,174.55,174.53,3.33]
[1754631121407,6.44675305,174.55,174.53,3.33]
[1754631122208,12.17475305,174.55,174.53,3.33]
[1754631123212,8.97475305,174.55,174.53,3.21]
[1754631123408,8.7383,174.54,174.53,3.21]
[1754631123607,3.01,174.54,174.53,3.21]
[1754631126113,8.97495305,174.55,174.53,3.21]
[1754631126315,11.98495305,174.55,174.53,3.21]
[1754631130822,5.7283,174.54,174.53,3.21]
[1754631132724,8.7381,174.55,174.53,3.21]
[1754631132923,11.98485305,174.55,174.53,3.21]
[1754631135329,5.7283,174.54,174.53,3.21]
[1754631142728,3.24675305,174.55,174.45,384.68]
[1754631142930,3.01,174.55,174.46,3.21]
[1754631143123,115.8136,174.59,174.46,3.21]
[1754631143124,3.24675305,174.54,174.46,3.21]
[1754631143319,5.7287,174.53,174.5,5.7294]
[1754631143524,5.7287,174.53,174.51,3.21]
[1754631144734,8.7387,174.53,174.51,3.21]
[1754631145128,5.729,174.52,174.51,3.21]
[1754631145532,5.729,174.52,174.5,5.7295]
[1754631145533,3.24675305,174.54,174.48,5.7301]
[1754631145732,3.01,174.52,174.49,3.21]
[1754631145926,3.24675305,174.55,174.47,3.24675305]
[1754631146132,6.25675305,174.55,174.52,3.21]
[1754631146428,5.7285,174.54,174.52,3.21]
[1754631146632,7.8090197,174.54,174.52,3.21]
[1754631147629,2.0805197,174.54,174.53,3.21]
[1754631147832,5.0905197,174.58,174.53,5.2905197]
[1754631148031,3.01,174.64,174.59,3.21]
[1754631148232,2.0805197,174.61,174.59,3.21]
[1754631148429,5.7266,174.6,174.59,3.21]
[1754631149333,8.7362,174.61,174.59,3.21]
[1754631150435,5.7264,174.6,174.59,3.21]
[1754631151835,8.8964,174.6,174.59,3.21]
[1754631152638,5.7264,174.6,174.59,3.21]
[1754631154440,8.8962,174.61,174.59,3.21]
[1754631155042,8.8962,174.61,174.6,3.13]
[1754631159839,8.8962,174.61,174.55,3.24794759]
[1754631160043,3.17,174.56,174.52,3.13]
[1754631160245,3.17,174.53,174.52,3.13]
[1754631161647,3.17,174.53,174.49,5.7299]
[1754631161848,3.17,174.52,174.5,3.13]
[1754631162145,5.7293,174.51,174.5,3.13]
[1754631162449,8.8993,174.51,174.5,3.13]
[1754631162644,5.7297,174.5,174.46,152.27956668]
[1754631162849,3.17,174.49,174.47,3.13]
[1754631163445,8.8994,174.51,174.47,3.13]
[1754631163649,3.24794759,174.52,174.47,3.13]
[1754631163847,3.17,174.51,174.47,3.13]
[1754631164144,3.24794759,174.53,174.46,152.27956668]
[1754631164449,6.41794759,174.53,174.49,3.13]
[1754631165247,5.729,174.52,174.49,8.8599]
[1754631165452,5.729,174.52,174.5,3.13]
[1754631165649,3.24794759,174.53,174.5,3.13]
[1754631165849,5.7285,174.54,174.51,3.13]
[1754631166353,8.8985,174.54,174.51,3.13]
[1754631166955,8.8985,174.54,174.52,3.13]
[1754631167157,5.7285,174.54,174.52,3.13]
[1754631167355,8.8987,174.53,174.52,3.13]
[1754631169153,3.17,174.52,174.49,5.7299]
[1754631169359,5.7287,174.53,174.51,3.13]
[1754631169751,8.97664759,174.53,174.5,3.13]
[1754631170055,3.17,174.52,174.5,3.13]